bitfinex/quotes_BTCUSD_20240730
["timestamp","ask_amount","ask_price","bid_price","bid_amount"]
[1722334119854,0.4955153,66597.0,66596.0,0.00026864]
[1722334120055,0.7958283,66597.0,66596.0,0.00026864]
[1722334120476,0.750782,66597.0,66596.0,0.00026864]
[1722334121168,0.750782,66597.0,66596.0,0.00926864]
[1722334121461,0.05221611,66609.0,66596.0,0.0866158]
[1722334121667,0.150141,66604.0,66599.0,0.150151]
[1722334121870,0.150141,66604.0,66600.0,0.00026864]
[1722334122103,0.150142,66604.0,66601.0,0.0646]
[1722334122304,0.150143,66603.0,66602.0,0.00026864]
[1722334122504,0.450429,66603.0,66602.0,0.00026864]
[1722334122706,0.300286,66603.0,66597.0,0.00026864]
[1722334123108,0.150143,66603.0,66598.0,0.150153]
[1722334123320,0.150146,66602.0,66599.0,0.00026864]
[1722334123518,0.150147,66601.0,66599.0,0.00026864]
[1722334123722,0.150152,66599.0,66598.0,0.00026864]
[1722334124122,0.150154,66598.0,66597.0,0.00026864]
[1722334124321,0.450463,66598.0,66597.0,0.00026864]
[1722334124551,0.450463,66598.0,66596.0,0.00026864]
[1722334124552,0.150156,66597.0,66596.0,0.00026864]
[1722334124661,0.50001976,66597.0,66596.0,0.00026864]
[1722334125132,0.450469,66597.0,66596.0,0.00026864]
[1722334125634,0.750782,66597.0,66596.0,0.00026864]
[1722334125772,0.750782,66597.0,66596.0,0.01184509]
[1722334125972,0.750782,66597.0,66596.0,0.00026864]
[1722334126196,1.10404384,66597.0,66596.0,0.00026864]
[1722334126442,1.25066248,66597.0,66596.0,0.01426864]
[1722334126603,1.25066248,66597.0,66596.0,0.014]
[1722334128052,0.750795,66596.0,66595.0,0.05]
[1722334128254,0.82685657,66596.0,66595.0,0.05]
[1722334128869,1.12717457,66596.0,66595.0,0.05]
[1722334128986,1.16787832,66596.0,66595.0,0.05]
[1722334129395,1.16787832,66596.0,66595.0,0.064]
[1722334129595,1.16787832,66596.0,66595.0,0.077]
[1722334130638,0.86756032,66596.0,66595.0,0.077]
[1722334131017,0.82685657,66596.0,66595.0,0.077]
[1722334132043,0.773795,66596.0,66595.0,0.077]
[1722334132247,0.023,66596.0,66595.0,0.077]
[1722334132474,0.02356279,66597.0,66596.0,0.511577]
[1722334132849,0.150159,66596.0,66595.0,0.08870518]
[1722334133048,0.150159,66596.0,66595.0,0.077]
[1722334133049,0.19756168,66596.0,66595.0,0.077]
[1722334133178,0.04740268,66596.0,66595.0,0.077]
[1722334133382,0.04740268,66596.0,66595.0,0.064]
[1722334133383,0.19756168,66596.0,66595.0,0.064]
[1722334133729,0.79819768,66596.0,66595.0,0.064]
[1722334133924,0.52087968,66596.0,66595.0,0.064]
[1722334135312,0.300309,66598.0,66595.0,0.064]
[1722334135313,0.300298,66601.0,66595.0,0.064]
[1722334135514,0.300293,66602.0,66596.0,0.15042664]
[1722334135722,0.023,66601.0,66597.0,0.150155]
[1722334136055,0.15015,66600.0,66598.0,0.00026864]
[1722334136256,0.023,66601.0,66597.0,0.00026864]
[1722334136257,0.0473438,66599.0,66597.0,0.00026864]
[1722334136588,0.0473438,66599.0,66595.0,0.05]
[1722334136589,0.150156,66597.0,66596.0,0.00026864]
[1722334136777,0.52641784,66597.0,66596.0,0.00026864]
[1722334136980,0.450477,66596.0,66595.0,0.068]
[1722334137156,0.1268,66606.0,66595.0,0.058]
[1722334137370,0.13958939,66605.0,66596.0,0.0756158]
[1722334137571,0.05,66606.0,66596.0,0.0756158]
[1722334137572,0.24950552,66604.0,66600.0,0.00026864]
[1722334137736,0.150141,66604.0,66600.0,0.00026864]
[1722334137936,0.300291,66602.0,66600.0,0.00026864]
[1722334138209,0.50288355,66601.0,66600.0,0.00026864]
[1722334138425,0.8834953,66601.0,66600.0,0.00026864]
[1722334138629,0.150159,66596.0,66595.0,0.05]
[1722334138763,0.173159,66596.0,66595.0,0.05]
[1722334138972,0.173159,66596.0,66595.0,0.06168748]
[1722334139201,0.9175092,66596.0,66595.0,0.06168748]
[1722334139454,1.0003092,66596.0,66595.0,0.06168748]
[1722334139628,1.0003092,66596.0,66595.0,0.05]
[1722334139828,1.0003092,66596.0,66595.0,0.064]
[1722334140027,0.93321984,66596.0,66595.0,0.064]
[1722334140391,1.23353784,66596.0,66595.0,0.064]
[1722334140608,1.23353784,66596.0,66595.0,0.05]
[1722334140830,1.33288546,66596.0,66595.0,0.05]
[1722334141039,1.51319411,66596.0,66595.0,0.064]
[1722334141458,1.41352565,66596.0,66595.0,0.078]
[1722334141677,1.41352565,66596.0,66595.0,0.064]
[1722334141678,1.51319985,66596.0,66595.0,0.064]
[1722334141880,1.52319985,66596.0,66595.0,0.064]
[1722334142091,1.3727713,66596.0,66595.0,0.077]
[1722334142293,0.29639647,66596.0,66595.0,0.077]
[1722334142437,0.29639647,66596.0,66595.0,0.589683]
[1722334142438,0.02356327,66596.0,66595.0,0.589683]
[1722334142850,0.02356327,66596.0,66595.0,0.90636748]
[1722334143210,0.02356327,66596.0,66595.0,0.30572348]
[1722334143417,0.150154,66599.0,66595.0,0.15556248]
[1722334143729,0.450477,66596.0,66595.0,0.07936248]
[1722334143926,0.80385657,66596.0,66595.0,0.09336248]
[1722334144400,0.90410191,66596.0,66595.0,0.09336248]
[1722334144636,0.90410191,66596.0,66595.0,0.08036248]
[1722334144887,0.90410191,66596.0,66595.0,0.078]
[1722334144888,0.92710191,66596.0,66595.0,0.078]
[1722334145082,0.62678391,66596.0,66595.0,0.078]
[1722334145441,1.19584354,66596.0,66595.0,0.078]
[1722334145805,1.21128345,66596.0,66595.0,0.078]
[1722334145979,1.51160145,66596.0,66595.0,0.064]
[1722334146347,1.51160145,66596.0,66595.0,0.076]
[1722334146548,1.34552365,66596.0,66595.0,0.076]
[1722334146750,1.34588689,66596.0,66595.0,0.064]
[1722334146951,1.32232306,66596.0,66595.0,0.064]
[1722334147158,1.32232306,66596.0,66595.0,0.078]
[1722334147550,1.33232306,66596.0,66595.0,0.078]
[1722334147748,1.48301738,66596.0,66595.0,0.078]
[1722334148420,1.48301738,66596.0,66582.0,0.00026864]
[1722334148421,0.76094,66583.0,66582.0,0.00026864]
[1722334148532,0.76094,66583.0,66568.0,0.0639]
[1722334148533,0.751087,66570.0,66569.0,0.00026864]
[1722334148938,0.80708098,66570.0,66569.0,0.00026864]
[1722334149137,0.83008098,66570.0,66569.0,0.00026864]
[1722334149396,0.83008098,66570.0,66566.0,0.03008]
[1722334149397,0.450673,66567.0,66566.0,0.03008]
[1722334149615,0.473673,66567.0,66566.0,0.03008]
[1722334149827,0.150229,66565.0,66564.0,0.03008]
[1722334150100,0.173229,66565.0,66564.0,0.03008]
[1722334150276,0.473687,66565.0,66564.0,0.03008]
[1722334150482,0.55905709,66565.0,66564.0,0.03008]
[1722334150658,0.85951509,66565.0,66564.0,0.03008]
[1722334151210,0.85951509,66565.0,66563.0,0.0150771]
[1722334151211,0.3191682,66565.0,66563.0,0.0150771]
[1722334151410,0.3191682,66565.0,66550.0,0.00055]
[1722334151411,0.751302,66551.0,66550.0,0.00055]
[1722334151617,0.17326,66551.0,66550.0,0.00055]
[1722334151841,0.023,66551.0,66550.0,0.00055]
[1722334152187,0.50891933,66551.0,66550.0,0.00055]
[1722334152590,0.91338266,66551.0,66550.0,0.00055]
[1722334152864,0.91338266,66551.0,66550.0,0.00455]
[1722334153040,0.61286166,66551.0,66550.0,0.00055]
[1722334153402,0.024,66551.0,66550.0,0.16195]
[1722334153602,0.001,66551.0,66550.0,0.16395]
[1722334153970,0.001,66551.0,66550.0,0.314212]
[1722334154097,0.001,66551.0,66550.0,0.16395]
[1722334154301,0.02457775,66551.0,66550.0,0.614737]
[1722334154502,0.023,66555.0,66550.0,0.14995]
[1722334154703,0.0323481,66555.0,66552.0,0.150257]
[1722334154907,0.0323481,66555.0,66550.0,0.14995]
[1722334155105,0.023,66559.0,66553.0,0.300512]
[1722334155329,0.023,66559.0,66558.0,0.150244]
[1722334155525,0.15151756,66564.0,66556.0,0.150248]
[1722334155526,0.023,66563.0,66556.0,0.150248]
[1722334155867,0.00128556,66564.0,66560.0,0.150239]
[1722334156024,0.150227,66566.0,66561.0,0.00026864]
[1722334156236,0.2820094,66566.0,66561.0,0.00026864]
[1722334156407,0.2820094,66566.0,66561.0,0.15050564]
[1722334156612,0.2820094,66566.0,66562.0,0.01641709]
[1722334156820,0.001,66563.0,66562.0,0.01641709]
[1722334157034,0.94895085,66563.0,66562.0,0.01641709]
[1722334157238,0.94895085,66563.0,66561.0,0.004]
[1722334157239,0.450706,66562.0,66561.0,0.004]
[1722334157438,0.83101729,66562.0,66561.0,0.004]
[1722334157656,0.83101729,66562.0,66550.0,0.00055]
[1722334157657,0.150252,66555.0,66550.0,0.00081864]
[1722334157857,0.023,66554.0,66550.0,0.15108064]
[1722334158191,0.1319059,66562.0,66551.0,0.04649709]
[1722334158378,0.301457,66566.0,66558.0,0.150243]
[1722334158379,0.023,66561.0,66558.0,0.150243]
[1722334158519,0.023,66565.0,66559.0,0.15051064]
[1722334158722,0.150229,66565.0,66560.0,0.150239]
[1722334158974,0.301457,66566.0,66557.0,0.300494]
[1722334158975,0.150234,66563.0,66561.0,0.00026864]
[1722334159174,0.023,66562.0,66561.0,0.04649709]
[1722334159413,0.023,66562.0,66561.0,0.03008]
[1722334159527,0.1436,66575.0,66561.0,0.03008]
[1722334159528,0.023,66563.0,66561.0,0.04649709]
[1722334159742,0.150218,66570.0,66561.0,0.04649709]
[1722334159743,0.001,66565.0,66564.0,0.150231]
[1722334159953,0.001,66565.0,66563.0,0.150233]
[1722334160162,0.0174221,66565.0,66564.0,0.01668573]
[1722334160363,0.0404221,66565.0,66564.0,0.01668573]
[1722334160592,0.023,66565.0,66564.0,0.16664809]
[1722334160796,0.023,66570.0,66564.0,0.01641709]
[1722334161035,0.023574,66565.0,66564.0,0.53001009]
[1722334161278,0.046574,66565.0,66564.0,0.53001009]
[1722334161523,0.023,66565.0,66564.0,0.53001009]
[1722334161769,0.3003,66600.0,66564.0,0.53001009]
[1722334161770,0.300417,66574.0,66565.0,0.300455]
[1722334162007,0.060216,66571.0,66567.0,0.150224]
[1722334162239,0.023,66570.0,66568.0,0.01668573]
[1722334162492,0.173217,66570.0,66568.0,0.01641709]
[1722334162717,0.023,66570.0,66566.0,0.150226]
[1722334162958,0.023,66570.0,66569.0,0.01641709]
[1722334163192,0.023,66570.0,66567.0,0.00026864]
[1722334163425,0.173217,66570.0,66567.0,0.00026864]
[1722334163679,0.023,66570.0,66568.0,0.01641709]
[1722334163901,0.023,66570.0,66568.0,0.009]
[1722334163902,0.05671739,66570.0,66568.0,0.009]
[1722334164136,0.05671739,66570.0,66569.0,0.02664388]
[1722334164659,0.05671739,66570.0,66569.0,1.14958388]
[1722334164660,0.001,66570.0,66569.0,1.14958388]
[1722334164900,0.001,66570.0,66569.0,1.17939524]
[1722334165141,0.001,66570.0,66569.0,1.24019524]
[1722334165372,0.001,66570.0,66569.0,0.93975524]
[1722334165883,0.001,66570.0,66569.0,1.24019524]
[1722334166318,0.001,66570.0,66569.0,1.39082828]
[1722334167011,0.002,66570.0,66569.0,1.39082828]
[1722334167383,0.060203,66586.0,66581.0,0.15019]
[1722334167600,0.060203,66586.0,66582.0,0.00026864]
[1722334167601,0.036057,66585.0,66582.0,0.00026864]
[1722334167939,0.186241,66585.0,66582.0,0.00026864]
[1722334168131,0.023,66584.0,66583.0,0.01643767]
[1722334168259,0.17375202,66585.0,66583.0,0.01643767]
[1722334168464,0.17375202,66585.0,66581.0,0.150192]
[1722334168465,0.023,66584.0,66581.0,0.150192]
[1722334168743,0.00093019,66583.0,66582.0,0.01643767]
[1722334168944,0.00093019,66583.0,66580.0,0.150195]
[1722334169148,0.173186,66584.0,66582.0,0.01643767]
[1722334169370,0.173186,66584.0,66580.0,0.150195]
[1722334169371,0.00102528,66583.0,66580.0,0.150195]
[1722334169549,0.023,66584.0,66583.0,0.01643767]
[1722334169758,0.023,66584.0,66581.0,0.150192]
[1722334169905,0.023,66584.0,66583.0,0.01643767]
[1722334170108,0.001,66583.0,66582.0,0.013]
[1722334170308,0.001,66583.0,66582.0,0.516271]
[1722334170538,0.001,66583.0,66582.0,0.816652]
[1722334170767,0.001,66583.0,66582.0,1.24115067]
[1722334170972,0.001,66583.0,66582.0,1.39178371]
[1722334171950,0.001,66583.0,66582.0,1.40578371]
[1722334172161,0.150152,66599.0,66594.0,0.150162]
[1722334172364,0.150152,66599.0,66595.0,0.00026864]
[1722334172365,0.060192,66598.0,66595.0,0.00026864]
[1722334172627,0.060192,66598.0,66595.0,0.01669662]
[1722334172628,0.210346,66598.0,66595.0,0.01669662]
[1722334172865,0.06001318,66597.0,66595.0,0.01669662]
[1722334173073,0.023,66596.0,66595.0,0.01669662]
[1722334174020,0.173159,66596.0,66595.0,0.01669662]
[1722334174222,0.173159,66596.0,66595.0,0.02942798]
[1722334174223,0.023,66596.0,66595.0,0.02942798]
[1722334174460,0.023,66596.0,66595.0,0.02969662]
[1722334174461,0.24764052,66596.0,66595.0,0.02969662]
[1722334174657,0.09748152,66596.0,66595.0,0.02969662]
[1722334174869,0.24764052,66596.0,66595.0,0.02942798]
[1722334175087,0.24764052,66596.0,66595.0,0.04342798]
[1722334175428,0.24764052,66596.0,66595.0,0.03042798]
[1722334175429,0.09748152,66596.0,66595.0,0.03042798]
[1722334175743,0.09848152,66596.0,66595.0,0.04442798]
[1722334175951,0.04756394,66596.0,66595.0,0.04469662]
[1722334176158,0.02456394,66596.0,66595.0,0.66360678]
[1722334176386,0.02456394,66596.0,66595.0,0.96366014]
[1722334177225,0.02456394,66596.0,66595.0,1.02466014]
[1722334177479,0.001,66596.0,66595.0,1.03866014]
[1722334178023,0.301318,66596.0,66595.0,0.07450798]
[1722334178259,0.5195687,66596.0,66595.0,0.07450798]
[1722334178446,0.5185687,66596.0,66595.0,0.04408]
[1722334178611,0.8418867,66596.0,66595.0,0.04408]
[1722334178810,0.8418867,66596.0,66595.0,0.05808]
[1722334178811,0.474477,66596.0,66595.0,0.05808]
[1722334179044,0.474477,66596.0,66595.0,0.028]
[1722334179341,0.82785657,66596.0,66595.0,0.028]
[1722334180181,0.82685657,66596.0,66595.0,0.014]
[1722334180379,0.150172,66590.0,66589.0,0.00026864]
[1722334180591,0.450517,66590.0,66589.0,0.00026864]
[1722334180809,0.450517,66590.0,66589.0,0.01626854]
[1722334181012,0.450523,66589.0,66588.0,0.00026864]
[1722334181392,0.450523,66589.0,66587.0,0.03008]
[1722334181393,0.150174,66589.0,66587.0,0.03008]
[1722334181597,0.150174,66589.0,66585.0,0.15045064]
[1722334181598,0.150174,66589.0,66588.0,0.00026864]
[1722334181798,0.150174,66589.0,66587.0,0.00026864]
[1722334181799,0.02356472,66589.0,66587.0,0.00026864]
[1722334182123,0.06605248,66589.0,66587.0,0.00026864]
[1722334182546,0.06605248,66589.0,66586.0,0.180261]
[1722334182747,0.06605248,66589.0,66587.0,0.00026864]
[1722334183013,0.06705248,66589.0,66588.0,0.014]
[1722334183134,0.06605248,66589.0,66588.0,0.03008]
[1722334183357,0.21622648,66589.0,66588.0,0.03008]
[1722334183569,0.02456472,66589.0,66588.0,0.180257]
[1722334183776,0.02456472,66589.0,66588.0,0.480611]
[1722334183973,0.02456472,66589.0,66588.0,0.494611]
[1722334184406,0.02456472,66589.0,66588.0,0.56995816]
[1722334185027,0.02356472,66589.0,66588.0,0.87031216]
[1722334185439,0.02456472,66589.0,66588.0,0.88431216]
[1722334185789,0.02456472,66589.0,66588.0,0.52490597]
[1722334186464,0.07207069,66589.0,66588.0,0.52490597]
[1722334186640,0.02456472,66589.0,66588.0,0.52490597]
[1722334189724,0.001,66589.0,66588.0,0.52490597]
[1722334190146,0.001,66589.0,66588.0,0.82525997]
[1722334190484,0.001,66589.0,66588.0,0.52490597]
[1722334190689,0.001,66589.0,66588.0,0.82525997]
[1722334192785,0.02456339,66589.0,66588.0,0.82525997]
[1722334193089,0.02456339,66589.0,66588.0,1.12561397]
[1722334193241,0.02456339,66589.0,66588.0,0.82525997]
[1722334195697,0.02456339,66589.0,66588.0,0.37472897]
[1722334195868,0.02456339,66589.0,66588.0,0.52490597]
[1722334196068,0.07206903,66589.0,66588.0,0.52490597]
[1722334196637,0.07206903,66589.0,66588.0,0.07437497]
[1722334196743,0.07206903,66589.0,66588.0,0.22455197]
[1722334197187,0.07206903,66589.0,66588.0,0.52490597]
[1722334197393,0.02456339,66589.0,66588.0,0.52490597]
[1722334199343,0.02456339,66589.0,66588.0,0.82525997]
[1722334199897,0.02456339,66589.0,66588.0,0.52490597]
[1722334200107,0.02456339,66589.0,66588.0,0.22455197]
[1722334200628,0.02456339,66589.0,66588.0,0.52490597]
[1722334201290,0.001,66589.0,66588.0,0.52490597]
[1722334201506,0.001,66589.0,66588.0,0.52514309]
[1722334201726,0.001,66589.0,66588.0,0.52490597]
[1722334201894,0.150163,66594.0,66591.0,0.03008]
[1722334202099,0.1010805,66593.0,66592.0,0.01642643]
[1722334202340,0.1010805,66593.0,66592.0,0.01626937]
[1722334202925,0.1010805,66593.0,66592.0,0.01653801]
[1722334203141,0.1010805,66593.0,66592.0,0.01626937]
[1722334203351,0.1020805,66593.0,66592.0,0.03053801]
[1722334203593,0.1020805,66593.0,66592.0,0.03026937]
[1722334203973,0.001,66593.0,66592.0,0.03053801]
[1722334204192,0.10217762,66593.0,66592.0,0.04453801]
[1722334204641,0.12574156,66593.0,66592.0,0.04453801]
[1722334205107,0.12574156,66593.0,66592.0,0.19470601]
[1722334205615,0.12574156,66593.0,66592.0,0.19443737]
[1722334206199,0.12574156,66593.0,66592.0,0.19459967]
[1722334206411,0.12574156,66593.0,66592.0,0.19443737]
[1722334206805,0.12658156,66593.0,66592.0,0.19443737]
[1722334207257,0.12658156,66593.0,66592.0,0.49477337]
[1722334207448,0.13629008,66593.0,66592.0,0.79537801]
[1722334207656,0.1208503,66593.0,66592.0,0.79537801]
[1722334207852,0.02540394,66593.0,66592.0,0.79510937]
[1722334208417,0.02540394,66593.0,66592.0,1.71499441]
[1722334208704,0.00184,66593.0,66592.0,1.71499441]
[1722334209721,0.00184,66593.0,66592.0,1.70099441]
[1722334209921,0.00184,66593.0,66592.0,1.26402537]
[1722334210122,0.00184,66593.0,66592.0,1.27357683]
[1722334210340,0.00084,66593.0,66592.0,1.25957683]
[1722334210553,0.00084,66593.0,66592.0,1.41020987]
[1722334210756,0.00084,66593.0,66592.0,2.67949208]
[1722334210956,0.00084,66593.0,66592.0,2.56694554]
[1722334211583,0.02439732,66593.0,66592.0,2.56694554]
[1722334211785,0.02439732,66593.0,66592.0,2.58094554]
[1722334212207,0.02439732,66593.0,66592.0,2.56694554]
[1722334212422,0.00114903,66620.0,66619.0,0.450321]
[1722334212632,0.00114903,66620.0,66619.0,0.750535]
[1722334212843,0.060168,66625.0,66622.0,0.3002]
[1722334213021,0.060168,66625.0,66619.0,0.31631995]
[1722334213022,0.07290616,66624.0,66623.0,0.150097]
[1722334213466,0.07290616,66624.0,66623.0,0.01610595]
[1722334213825,0.07290616,66624.0,66621.0,0.150101]
[1722334214024,0.07290616,66624.0,66623.0,0.01610595]
[1722334214242,0.07290616,66624.0,66620.0,0.150104]
[1722334214423,0.07290616,66624.0,66623.0,0.01610595]
[1722334214638,0.22300216,66624.0,66620.0,0.150103]
[1722334214852,0.22300216,66624.0,66623.0,0.02010595]
[1722334215006,0.07290616,66624.0,66623.0,0.004]
[1722334215539,0.07290616,66624.0,66623.0,0.02010595]
[1722334215742,0.07290616,66624.0,66623.0,0.004]
[1722334215943,0.09646081,66624.0,66623.0,0.02010595]
[1722334216145,0.09646081,66624.0,66621.0,0.150101]
[1722334216344,0.07290616,66624.0,66623.0,0.01610595]
[1722334216507,0.07290616,66624.0,66623.0,0.001]
[1722334216722,0.07290616,66624.0,66623.0,0.01710595]
[1722334216927,0.07290616,66624.0,66623.0,0.001]
[1722334217125,0.07290616,66624.0,66623.0,0.01710595]
[1722334217126,0.31956388,66624.0,66623.0,0.01710595]
[1722334217352,0.61975588,66624.0,66623.0,0.001]
[1722334217582,0.22300216,66624.0,66623.0,0.01710595]
[1722334217821,0.22300216,66624.0,66623.0,0.001]
[1722334218049,0.22300216,66624.0,66623.0,0.01709392]
[1722334218050,0.52319416,66624.0,66623.0,0.01709392]
[1722334218307,0.52319416,66624.0,66623.0,0.004]
[1722334218519,0.82338616,66624.0,66623.0,0.02009701]
[1722334218664,0.82338616,66624.0,66623.0,0.012]
[1722334218860,0.52319416,66624.0,66623.0,0.004]
[1722334219097,0.54674881,66624.0,66623.0,0.004]
[1722334219293,0.54674881,66624.0,66623.0,0.014]
[1722334219522,0.52319416,66624.0,66623.0,0.004]
[1722334219967,0.52319416,66624.0,66623.0,0.008]
[1722334220168,0.150103,66621.0,66618.0,0.03008]
[1722334220520,0.150103,66621.0,66619.0,0.01609887]
[1722334221547,0.37309816,66624.0,66619.0,0.01609887]
[1722334221548,0.30021,66620.0,66619.0,0.01149395]
[1722334221906,0.450315,66620.0,66619.0,0.01149395]
[1722334222113,0.150109,66618.0,66617.0,0.03008]
[1722334222319,0.300202,66622.0,66619.0,0.011]
[1722334222543,0.150105,66620.0,66616.0,0.150113]
[1722334222891,0.150105,66620.0,66619.0,0.013]
[1722334223099,0.023,66621.0,66619.0,0.013]
[1722334223302,0.450315,66620.0,66619.0,0.014]
[1722334223556,0.023,66621.0,66619.0,0.024]
[1722334223759,0.150105,66620.0,66619.0,0.024]
[1722334223959,0.150105,66620.0,66619.0,0.01]
[1722334224163,0.150105,66620.0,66619.0,0.023]
[1722334224790,0.150105,66620.0,66619.0,0.01]
[1722334225000,0.150105,66620.0,66616.0,0.150113]
[1722334225784,0.150105,66620.0,66619.0,0.01]
[1722334226182,0.150103,66621.0,66619.0,0.024]
[1722334226736,0.060166,66626.0,66616.0,0.03008]
[1722334226737,0.126636,66620.0,66616.0,0.03008]
[1722334226940,0.450334,66617.0,66616.0,0.03008]
[1722334227089,0.150111,66617.0,66616.0,0.03008]
[1722334227293,0.150111,66617.0,66612.0,0.180202]
[1722334227294,0.150113,66617.0,66612.0,0.180202]
[1722334227571,0.150113,66617.0,66611.0,0.300248]
[1722334227572,0.00128556,66616.0,66613.0,0.19023766]
[1722334228119,0.00128556,66616.0,66613.0,0.04011766]
[1722334228387,0.527255,66614.0,66613.0,0.01003766]
[1722334228557,0.12793278,66614.0,66613.0,0.01003766]
[1722334228900,0.12793278,66614.0,66613.0,0.014]
[1722334228901,0.173118,66614.0,66613.0,0.014]
[1722334229384,0.173118,66614.0,66610.0,0.150126]
[1722334229590,0.15140556,66613.0,66609.0,0.150129]
[1722334229766,0.15140556,66613.0,66611.0,0.01003766]
[1722334229971,0.00128556,66613.0,66612.0,0.150123]
[1722334230225,0.00128556,66617.0,66614.0,0.300236]
[1722334230434,0.0769,66625.0,66616.0,0.150113]
[1722334230641,0.09228179,66624.0,66617.0,0.150111]
[1722334230846,0.150103,66621.0,66617.0,0.01003766]
[1722334230968,0.00128556,66620.0,66617.0,0.01003766]
[1722334231236,0.15139056,66620.0,66617.0,0.01003766]
[1722334231606,0.150107,66619.0,66618.0,0.03008]
[1722334231733,0.15139056,66620.0,66618.0,0.04582212]
[1722334232793,0.00128556,66622.0,66618.0,0.04582212]
[1722334232994,0.150103,66621.0,66618.0,0.04582212]
[1722334233199,0.17494589,66620.0,66618.0,0.04582212]
[1722334233369,0.17494589,66620.0,66618.0,0.05982212]
[1722334233850,0.02484089,66620.0,66619.0,0.03008]
[1722334234266,0.17494589,66620.0,66619.0,0.03008]
[1722334234480,0.17366033,66620.0,66619.0,0.04582212]
[1722334234666,0.150105,66620.0,66619.0,0.04582212]
[1722334235310,0.00128556,66621.0,66619.0,0.04582212]
[1722334235510,0.17438756,66621.0,66619.0,0.04582212]
[1722334236547,0.15138156,66624.0,66620.0,0.150105]
[1722334236742,0.00128556,66622.0,66620.0,0.150104]
[1722334236941,0.07307513,66623.0,66620.0,0.150104]
[1722334237157,0.07307513,66623.0,66621.0,0.0157446]
[1722334237158,0.001167,66622.0,66621.0,0.0157446]
[1722334237328,0.01902301,66622.0,66621.0,0.0157446]
[1722334237531,0.04202301,66622.0,66621.0,0.0157446]
[1722334237756,0.04311226,66622.0,66619.0,0.194186]
[1722334238071,0.04311226,66622.0,66621.0,0.0157446]
[1722334238072,0.02408925,66622.0,66621.0,0.0157446]
[1722334238285,0.04312872,66622.0,66620.0,0.150104]
[1722334238506,0.04312872,66622.0,66621.0,0.0157446]
[1722334238507,0.02408925,66622.0,66621.0,0.0157446]
[1722334238719,0.04306216,66622.0,66621.0,0.0157446]
[1722334238925,0.01908454,66622.0,66621.0,0.750512]
[1722334239092,0.060166,66626.0,66622.0,0.1501]
[1722334239093,0.00128556,66625.0,66622.0,0.1501]
[1722334239255,0.01928182,66624.0,66622.0,0.1501]
[1722334239456,0.023,66623.0,66621.0,0.150102]
[1722334239873,0.00128556,66622.0,66621.0,0.150102]
[1722334240078,0.00128556,66622.0,66621.0,0.163102]
[1722334240479,0.00128556,66622.0,66621.0,0.150102]
[1722334241823,0.00128556,66622.0,66621.0,0.162102]
[1722334242135,0.00211556,66622.0,66621.0,0.150102]
[1722334242495,0.00211556,66622.0,66619.0,0.03008]
[1722334242645,0.00211556,66622.0,66621.0,0.013]
[1722334243255,0.00211556,66622.0,66620.0,0.150103]
[1722334244058,0.00211556,66622.0,66621.0,0.014]
[1722334245077,0.00211556,66622.0,66620.0,0.150103]
[1722334245505,0.00211556,66622.0,66621.0,0.013]
[1722334245695,0.00211556,66622.0,66621.0,0.0287446]
[1722334245918,0.02566997,66622.0,66621.0,0.0287446]
[1722334246420,0.00211556,66622.0,66621.0,0.0157446]
[1722334247617,0.00211556,66622.0,66621.0,0.0297446]
[1722334248030,0.020915,66622.0,66621.0,0.0297446]
[1722334248496,0.020915,66622.0,66621.0,0.0427446]
[1722334248728,0.1090763,66622.0,66621.0,0.0427446]
[1722334249173,0.13263074,66622.0,66621.0,0.0427446]
[1722334249381,0.28273074,66622.0,66621.0,0.0427446]
[1722334249599,0.28144518,66622.0,66621.0,0.0427446]
[1722334249821,0.13134518,66622.0,66621.0,0.0427446]
[1722334249999,0.02567,66622.0,66621.0,0.0427446]
[1722334250275,0.0193606,66622.0,66621.0,0.0427446]
[1722334250478,0.02064616,66622.0,66621.0,0.0427446]
[1722334251096,0.0193606,66622.0,66621.0,0.0427446]
[1722334251292,0.02064616,66622.0,66621.0,0.0427446]
[1722334251497,0.0193606,66622.0,66621.0,0.0427446]
[1722334251701,0.02064616,66622.0,66621.0,0.0427446]
[1722334251901,0.0193606,66622.0,66621.0,0.0427446]
[1722334252484,0.01932367,66622.0,66621.0,0.0427446]
[1722334252629,0.02060923,66622.0,66621.0,0.0427446]
[1722334253035,0.01932367,66622.0,66621.0,0.0427446]
[1722334253249,0.16942367,66622.0,66621.0,0.0427446]
[1722334253411,0.02060923,66622.0,66621.0,0.0427446]
[1722334253612,0.04416367,66622.0,66621.0,0.0427446]
[1722334253859,0.19297811,66622.0,66621.0,0.0427446]
[1722334254056,0.19290964,66622.0,66621.0,0.0427446]
[1722334254464,0.1693552,66622.0,66621.0,0.0427446]
[1722334255312,0.25964127,66622.0,66621.0,0.0427446]
[1722334255483,0.10954127,66622.0,66621.0,0.0427446]
[1722334255682,0.0192552,66622.0,66621.0,0.0427446]
[1722334256046,0.0199902,66622.0,66621.0,0.0427446]
[1722334256244,0.0192552,66622.0,66621.0,0.0427446]
[1722334256667,0.0192552,66622.0,66621.0,0.1928466]
[1722334257067,0.0192552,66622.0,66621.0,0.4930516]
[1722334257271,0.00083,66622.0,66621.0,0.4930516]
[1722334257446,0.00083,66622.0,66621.0,0.7932566]
[1722334257649,0.00083,66622.0,66621.0,1.3455416]
[1722334258706,0.00083,66622.0,66621.0,1.3315416]
[1722334258914,0.00083,66622.0,66621.0,1.3185416]
[1722334259176,0.00083,66622.0,66621.0,1.3325416]
[1722334259412,0.00083,66622.0,66621.0,1.3465416]
[1722334259646,0.00083,66622.0,66621.0,1.3325416]
[1722334259926,0.00083,66622.0,66621.0,1.3465416]
[1722334260356,0.00083,66622.0,66621.0,1.2692416]
[1722334260554,0.00083,66622.0,66621.0,1.3465416]
[1722334261313,0.0243819,66622.0,66621.0,1.3465416]
[1722334261472,0.0243819,66622.0,66621.0,1.3325416]
[1722334261681,0.00083,66622.0,66621.0,1.3465416]
[1722334263281,0.00083,66622.0,66621.0,1.79737964]
[1722334263431,0.00083,66622.0,66621.0,1.89737964]
[1722334263593,0.00083,66622.0,66621.0,1.99972357]
[1722334264943,0.02437955,66622.0,66621.0,1.99972357]